[Event "Titled Tuesday Blitz November 07 Early 2023"]
[White "Csonka, Balazs"]
[Black "Samarth J Rao"]
[WhiteFideId "742910"]
[BlackFideId "46652370"]
[WhiteElo "2767"]
[BlackElo "2083"]
[Result "1-0"]
[Round "6"]
[TimeControl "180+1"]
[Date "2023.11.07"]
[WhiteClock "0:01:18"]
[BlackClock "0:00:00"]
[Board "53"]

1. Nf3 {[%clk 0:03:00]}  Nf6 {[%clk 0:02:58]} 2. c4 {[%clk 0:03:00]}  e6 {[%clk 0:02:50]} 3. Nc3 {[%clk 0:02:59]}  d5 {[%clk 0:02:50]} 4. e3 {[%clk 0:02:59]}  c6 {[%clk 0:02:37]} 5. Qc2 {[%clk 0:02:54]}  Nbd7 {[%clk 0:02:33]} 6. b3 {[%clk 0:02:53]}  e5 {[%clk 0:02:30]} 7. cxd5 {[%clk 0:02:48]}  Nxd5 {[%clk 0:02:20]} 8. Bb2 {[%clk 0:02:42]}  Bd6 {[%clk 0:01:48]} 9. Ne4 {[%clk 0:02:23]}  Bc7 {[%clk 0:01:39]} 10. Ng3 {[%clk 0:02:14]}  N7f6 {[%clk 0:01:30]} 11. Bxe5 {[%clk 0:02:06]}  Bg4 {[%clk 0:01:14]} 12. Bxc7 {[%clk 0:02:04]}  Qxc7 {[%clk 0:01:14]} 13. Be2 {[%clk 0:02:04]}  h5 {[%clk 0:01:02]} 14. h3 {[%clk 0:01:55]}  Be6 {[%clk 0:01:01]} 15. Nf5 {[%clk 0:01:50]}  g6 {[%clk 0:01:00]} 16. Ng7+ {[%clk 0:01:49]}  Kf8 {[%clk 0:00:59]} 17. Nxe6+ {[%clk 0:01:49]}  fxe6 {[%clk 0:00:59]} 18. O-O {[%clk 0:01:48]}  Kg7 {[%clk 0:00:55]} 19. Ng5 {[%clk 0:01:33]}  Qe7 {[%clk 0:00:51]} 20. a3 {[%clk 0:01:28]}  e5 {[%clk 0:00:51]} 21. Bd3 {[%clk 0:01:23]}  Rh6 {[%clk 0:00:16]} 22. b4 {[%clk 0:01:18]}  e4 {[%clk 0:00:06]} 23. Nxe4 {[%clk 0:01:17]}  Nxe4 {[%clk 0:00:00]} 24. Bxe4 {[%clk 0:01:18]} 1-0


[Site "https://www.chess.com"]

[Event "Titled Tuesday Blitz November 07 Early 2023"]
[White "Galchenko, Matvey"]
[Black "aghasiyevkamal"]
[WhiteFideId "24175480"]
[WhiteElo "2937"]
[BlackElo "2616"]
[Result "1-0"]
[Round "6"]
[TimeControl "180+1"]
[Date "2023.11.07"]
[WhiteClock "0:00:12"]
[BlackClock "0:00:00"]
[Board "56"]

1. f4 {[%clk 0:02:56]}  e5 {[%clk 0:02:57]} 2. fxe5 {[%clk 0:02:57]}  d6 {[%clk 0:02:57]} 3. Nf3 {[%clk 0:02:57]}  Nc6 {[%clk 0:02:57]} 4. e4 {[%clk 0:02:57]}  Nxe5 {[%clk 0:02:53]} 5. d4 {[%clk 0:02:57]}  Nxf3+ {[%clk 0:02:52]} 6. Qxf3 {[%clk 0:02:58]}  Nf6 {[%clk 0:02:53]} 7. Nc3 {[%clk 0:02:58]}  Be7 {[%clk 0:02:53]} 8. Bd3 {[%clk 0:02:57]}  O-O {[%clk 0:02:51]} 9. O-O {[%clk 0:02:57]}  c5 {[%clk 0:02:49]} 10. d5 {[%clk 0:02:24]}  Ng4 {[%clk 0:02:47]} 11. Bf4 {[%clk 0:02:15]}  Bf6 {[%clk 0:02:40]} 12. Rab1 {[%clk 0:02:08]}  a6 {[%clk 0:02:35]} 13. a4 {[%clk 0:02:07]}  Ne5 {[%clk 0:02:31]} 14. Qg3 {[%clk 0:02:06]}  b6 {[%clk 0:02:18]} 15. Nd1 {[%clk 0:01:56]}  Re8 {[%clk 0:02:13]} 16. Be2 {[%clk 0:01:47]}  Bh4 {[%clk 0:02:08]} 17. Qe3 {[%clk 0:01:42]}  f5 {[%clk 0:02:07]} 18. Nc3 {[%clk 0:01:33]}  fxe4 {[%clk 0:01:45]} 19. Bh5 {[%clk 0:01:27]}  Re7 {[%clk 0:01:01]} 20. Bg5 {[%clk 0:01:17]}  Bxg5 {[%clk 0:00:58]} 21. Qxg5 {[%clk 0:01:17]}  h6 {[%clk 0:00:39]} 22. Qh4 {[%clk 0:01:11]}  Bb7 {[%clk 0:00:38]} 23. Rbe1 {[%clk 0:01:04]}  Qd7 {[%clk 0:00:33]} 24. Rxe4 {[%clk 0:01:00]}  b5 {[%clk 0:00:30]} 25. axb5 {[%clk 0:00:54]}  axb5 {[%clk 0:00:29]} 26. Bg4 {[%clk 0:00:54]}  Qe8 {[%clk 0:00:20]} 27. Be6+ {[%clk 0:00:49]}  Rxe6 {[%clk 0:00:20]} 28. dxe6 {[%clk 0:00:50]}  Bxe4 {[%clk 0:00:20]} 29. Qxe4 {[%clk 0:00:50]}  Rb8 {[%clk 0:00:15]} 30. Qf5 {[%clk 0:00:43]}  Qc6 {[%clk 0:00:12]} 31. e7 {[%clk 0:00:38]}  Re8 {[%clk 0:00:11]} 32. Qe6+ {[%clk 0:00:30]}  Kh7 {[%clk 0:00:10]} 33. Nd5 {[%clk 0:00:24]}  c4 {[%clk 0:00:05]} 34. Rf8 {[%clk 0:00:13]}  Qc5+ {[%clk 0:00:03]} 35. Kh1 {[%clk 0:00:14]}  Qd4 {[%clk 0:00:02]} 36. h3 {[%clk 0:00:11]}  Qd1+ {[%clk 0:00:00]} 37. Kh2 {[%clk 0:00:12]} 1-0


[Site "https://www.chess.com"]

[Event "Titled Tuesday Blitz November 07 Early 2023"]
[White "mind1mover"]
[Black "Sharapov, Evgeny"]
[BlackFideId "14103133"]
[WhiteElo "2820"]
[BlackElo "2610"]
[Result "1-0"]
[Round "6"]
[TimeControl "180+1"]
[Date "2023.11.07"]
[WhiteClock "0:00:06"]
[BlackClock "0:00:07"]
[Board "58"]

1. Nf3 {[%clk 0:03:00]}  c5 {[%clk 0:02:59]} 2. b3 {[%clk 0:02:52]}  Nc6 {[%clk 0:02:59]} 3. Bb2 {[%clk 0:02:52]}  Nf6 {[%clk 0:02:59]} 4. e3 {[%clk 0:02:52]}  g6 {[%clk 0:02:59]} 5. Bb5 {[%clk 0:02:49]}  Bg7 {[%clk 0:02:58]} 6. Bxc6 {[%clk 0:02:48]}  dxc6 {[%clk 0:02:58]} 7. O-O {[%clk 0:02:45]}  O-O {[%clk 0:02:58]} 8. d3 {[%clk 0:02:44]}  a5 {[%clk 0:02:56]} 9. a4 {[%clk 0:02:43]}  Nd5 {[%clk 0:02:54]} 10. Bxg7 {[%clk 0:02:38]}  Kxg7 {[%clk 0:02:54]} 11. e4 {[%clk 0:02:36]}  Nb4 {[%clk 0:02:53]} 12. Nbd2 {[%clk 0:02:34]}  f6 {[%clk 0:02:53]} 13. e5 {[%clk 0:02:29]}  f5 {[%clk 0:02:52]} 14. e6 {[%clk 0:02:17]}  Bxe6 {[%clk 0:02:50]} 15. Re1 {[%clk 0:02:17]}  Bg8 {[%clk 0:02:50]} 16. Ne5 {[%clk 0:02:07]}  Qd6 {[%clk 0:02:41]} 17. Ndc4 {[%clk 0:02:01]}  Bxc4 {[%clk 0:02:40]} 18. Nxc4 {[%clk 0:02:01]}  Qf6 {[%clk 0:02:37]} 19. Qe2 {[%clk 0:01:43]}  e5 {[%clk 0:02:28]} 20. Nxe5 {[%clk 0:01:34]}  Rae8 {[%clk 0:02:27]} 21. f4 {[%clk 0:01:35]}  Re7 {[%clk 0:02:17]} 22. Qf2 {[%clk 0:01:22]}  b6 {[%clk 0:02:15]} 23. Nc4 {[%clk 0:01:15]}  Rfe8 {[%clk 0:02:07]} 24. Rxe7+ {[%clk 0:01:05]}  Rxe7 {[%clk 0:02:03]} 25. Ne5 {[%clk 0:01:06]}  Nd5 {[%clk 0:01:53]} 26. Re1 {[%clk 0:01:03]}  h6 {[%clk 0:01:45]} 27. g3 {[%clk 0:01:01]}  g5 {[%clk 0:01:45]} 28. Kh1 {[%clk 0:00:59]}  gxf4 {[%clk 0:01:45]} 29. gxf4 {[%clk 0:01:00]}  Kh7 {[%clk 0:01:45]} 30. Qf3 {[%clk 0:00:41]}  Rg7 {[%clk 0:01:37]} 31. Rg1 {[%clk 0:00:39]}  Rxg1+ {[%clk 0:01:33]} 32. Kxg1 {[%clk 0:00:40]}  Qh4 {[%clk 0:01:20]} 33. Qg3 {[%clk 0:00:40]}  Qxg3+ {[%clk 0:01:03]} 34. hxg3 {[%clk 0:00:41]}  Ne7 {[%clk 0:01:03]} 35. Kf2 {[%clk 0:00:41]}  Kg7 {[%clk 0:00:54]} 36. Kf3 {[%clk 0:00:40]}  h5 {[%clk 0:00:54]} 37. Kg2 {[%clk 0:00:41]}  Kh6 {[%clk 0:00:48]} 38. Kh3 {[%clk 0:00:34]}  Kg7 {[%clk 0:00:47]} 39. Kh2 {[%clk 0:00:32]}  Kh6 {[%clk 0:00:48]} 40. Kg2 {[%clk 0:00:32]}  Kg7 {[%clk 0:00:48]} 41. Kh3 {[%clk 0:00:33]}  Kh6 {[%clk 0:00:48]} 42. Nc4 {[%clk 0:00:26]}  Nd5 {[%clk 0:00:47]} 43. Kh4 {[%clk 0:00:16]}  Nb4 {[%clk 0:00:29]} 44. Nxb6 {[%clk 0:00:14]}  Nxc2 {[%clk 0:00:29]} 45. Nc4 {[%clk 0:00:15]}  Nb4 {[%clk 0:00:27]} 46. Nxa5 {[%clk 0:00:15]}  Nxd3 {[%clk 0:00:28]} 47. Nc4 {[%clk 0:00:07]}  Nb4 {[%clk 0:00:23]} 48. a5 {[%clk 0:00:07]}  Na6 {[%clk 0:00:23]} 49. Ne5 {[%clk 0:00:07]}  Nb4 {[%clk 0:00:23]} 50. Nd7 {[%clk 0:00:02]}  Na6 {[%clk 0:00:22]} 51. Nb6 {[%clk 0:00:03]}  Kg6 {[%clk 0:00:20]} 52. Nc4 {[%clk 0:00:03]}  Kh6 {[%clk 0:00:19]} 53. Ne5 {[%clk 0:00:02]}  Nb4 {[%clk 0:00:19]} 54. Kh3 {[%clk 0:00:02]}  Kg7 {[%clk 0:00:15]} 55. Kg2 {[%clk 0:00:03]}  Kf6 {[%clk 0:00:13]} 56. Kh2 {[%clk 0:00:03]}  Ke6 {[%clk 0:00:13]} 57. Kh3 {[%clk 0:00:03]}  Kd5 {[%clk 0:00:14]} 58. Kh4 {[%clk 0:00:04]}  Kd4 {[%clk 0:00:14]} 59. Kxh5 {[%clk 0:00:03]}  Kc3 {[%clk 0:00:14]} 60. Kg5 {[%clk 0:00:02]}  Kxb3 {[%clk 0:00:15]} 61. Kxf5 {[%clk 0:00:02]}  c4 {[%clk 0:00:15]} 62. Nxc4 {[%clk 0:00:02]}  Kxc4 {[%clk 0:00:16]} 63. g4 {[%clk 0:00:03]}  c5 {[%clk 0:00:15]} 64. g5 {[%clk 0:00:04]}  Nd5 {[%clk 0:00:09]} 65. a6 {[%clk 0:00:03]}  Kb5 {[%clk 0:00:07]} 66. a7 {[%clk 0:00:03]}  Nb6 {[%clk 0:00:08]} 67. g6 {[%clk 0:00:04]}  c4 {[%clk 0:00:08]} 68. g7 {[%clk 0:00:05]}  c3 {[%clk 0:00:09]} 69. g8=Q {[%clk 0:00:05]}  c2 {[%clk 0:00:07]} 70. Qb3+ {[%clk 0:00:06]} 1-0


[Site "https://www.chess.com"]

[Event "Titled Tuesday Blitz November 07 Early 2023"]
[White "Bacrot, Etienne"]
[Black "Bodnaruk, Anastasia"]
[WhiteFideId "605506"]
[BlackFideId "4181751"]
[WhiteElo "2816"]
[BlackElo "2609"]
[Result "1-0"]
[Round "6"]
[TimeControl "180+1"]
[Date "2023.11.07"]
[WhiteClock "0:00:12"]
[BlackClock "0:00:03"]
[Board "59"]

1. e4 {[%clk 0:03:00]}  c5 {[%clk 0:02:59]} 2. Nf3 {[%clk 0:03:00]}  d6 {[%clk 0:02:59]} 3. Bb5+ {[%clk 0:03:00]}  Bd7 {[%clk 0:02:57]} 4. c4 {[%clk 0:02:59]}  Nf6 {[%clk 0:02:51]} 5. Nc3 {[%clk 0:02:59]}  e5 {[%clk 0:02:49]} 6. d3 {[%clk 0:02:58]}  Be7 {[%clk 0:02:48]} 7. Bg5 {[%clk 0:02:54]}  Nc6 {[%clk 0:02:46]} 8. Bxf6 {[%clk 0:02:47]}  Bxf6 {[%clk 0:02:46]} 9. Nd5 {[%clk 0:02:47]}  a6 {[%clk 0:02:29]} 10. Ba4 {[%clk 0:02:47]}  O-O {[%clk 0:02:23]} 11. h3 {[%clk 0:02:45]}  g6 {[%clk 0:02:21]} 12. h4 {[%clk 0:02:34]}  Bg4 {[%clk 0:02:14]} 13. Bxc6 {[%clk 0:02:26]}  bxc6 {[%clk 0:02:14]} 14. Ne3 {[%clk 0:02:26]}  Be6 {[%clk 0:02:07]} 15. h5 {[%clk 0:02:23]}  Rb8 {[%clk 0:01:55]} 16. Qe2 {[%clk 0:02:22]}  d5 {[%clk 0:01:51]} 17. O-O-O {[%clk 0:02:18]}  d4 {[%clk 0:01:45]} 18. Nf1 {[%clk 0:02:00]}  Qa5 {[%clk 0:01:40]} 19. Kb1 {[%clk 0:01:59]}  Rb7 {[%clk 0:01:39]} 20. Rd2 {[%clk 0:01:58]}  Rfb8 {[%clk 0:01:34]} 21. Rc2 {[%clk 0:01:39]}  Rb4 {[%clk 0:01:33]} 22. Qd2 {[%clk 0:01:27]}  Qb6 {[%clk 0:01:12]} 23. Ka1 {[%clk 0:01:03]}  a5 {[%clk 0:01:10]} 24. Ng3 {[%clk 0:00:53]}  Ra4 {[%clk 0:01:06]} 25. hxg6 {[%clk 0:00:22]}  fxg6 {[%clk 0:01:05]} 26. Ne2 {[%clk 0:00:09]}  Rb7 {[%clk 0:01:00]} 27. Nc1 {[%clk 0:00:09]}  Bg4 {[%clk 0:00:52]} 28. Nh2 {[%clk 0:00:08]}  Be6 {[%clk 0:00:50]} 29. Nf3 {[%clk 0:00:08]}  Rb4 {[%clk 0:00:40]} 30. a3 {[%clk 0:00:07]}  Ra4 {[%clk 0:00:41]} 31. Na2 {[%clk 0:00:04]}  Qb3 {[%clk 0:00:40]} 32. Qd1 {[%clk 0:00:03]}  Bg4 {[%clk 0:00:30]} 33. Rd2 {[%clk 0:00:03]}  Bxf3 {[%clk 0:00:22]} 34. gxf3 {[%clk 0:00:03]}  Bg5 {[%clk 0:00:20]} 35. Qxb3 {[%clk 0:00:04]}  Rxb3 {[%clk 0:00:20]} 36. Rdd1 {[%clk 0:00:04]}  Bf4 {[%clk 0:00:19]} 37. Rhg1 {[%clk 0:00:04]}  Kf7 {[%clk 0:00:18]} 38. Rge1 {[%clk 0:00:04]}  h5 {[%clk 0:00:18]} 39. Rh1 {[%clk 0:00:05]}  Rb8 {[%clk 0:00:15]} 40. Nc1 {[%clk 0:00:05]}  Kf6 {[%clk 0:00:08]} 41. Ka2 {[%clk 0:00:05]}  Rh8 {[%clk 0:00:03]} 42. Nb3 {[%clk 0:00:05]}  h4 {[%clk 0:00:02]} 43. Nxc5 {[%clk 0:00:06]}  Rxc4 {[%clk 0:00:01]} 44. dxc4 {[%clk 0:00:06]}  h3 {[%clk 0:00:02]} 45. Nd3 {[%clk 0:00:06]}  g5 {[%clk 0:00:02]} 46. c5 {[%clk 0:00:07]}  h2 {[%clk 0:00:02]} 47. Rdf1 {[%clk 0:00:06]}  Rh3 {[%clk 0:00:01]} 48. Rd1 {[%clk 0:00:07]}  Rh4 {[%clk 0:00:01]} 49. Kb3 {[%clk 0:00:07]}  Ke6 {[%clk 0:00:02]} 50. Kc4 {[%clk 0:00:07]}  Rh3 {[%clk 0:00:02]} 51. Rde1 {[%clk 0:00:06]}  Rh4 {[%clk 0:00:02]} 52. Rd1 {[%clk 0:00:06]}  Rh3 {[%clk 0:00:02]} 53. Rdf1 {[%clk 0:00:06]}  Rh4 {[%clk 0:00:03]} 54. Nxf4+ {[%clk 0:00:06]}  gxf4 {[%clk 0:00:03]} 55. Kd3 {[%clk 0:00:07]}  Rh3 {[%clk 0:00:03]} 56. Ke2 {[%clk 0:00:07]}  Kf6 {[%clk 0:00:03]} 57. Rd1 {[%clk 0:00:08]}  Rh8 {[%clk 0:00:03]} 58. b4 {[%clk 0:00:07]}  axb4 {[%clk 0:00:03]} 59. axb4 {[%clk 0:00:08]}  Ke6 {[%clk 0:00:04]} 60. Rb1 {[%clk 0:00:08]}  Rh3 {[%clk 0:00:03]} 61. Rb2 {[%clk 0:00:08]}  d3+ {[%clk 0:00:04]} 62. Kxd3 {[%clk 0:00:08]}  Rxf3+ {[%clk 0:00:04]} 63. Ke2 {[%clk 0:00:09]}  Rh3 {[%clk 0:00:05]} 64. f3 {[%clk 0:00:09]}  Rh4 {[%clk 0:00:04]} 65. Kf2 {[%clk 0:00:10]}  Rh7 {[%clk 0:00:04]} 66. b5 {[%clk 0:00:10]}  cxb5 {[%clk 0:00:03]} 67. Rxb5 {[%clk 0:00:10]}  Ra7 {[%clk 0:00:03]} 68. Rb6+ {[%clk 0:00:11]}  Kd7 {[%clk 0:00:03]} 69. Rxh2 {[%clk 0:00:11]}  Ra2+ {[%clk 0:00:03]} 70. Kg1 {[%clk 0:00:12]}  Ra1+ {[%clk 0:00:04]} 71. Kg2 {[%clk 0:00:12]}  Ra2+ {[%clk 0:00:05]} 72. Kh3 {[%clk 0:00:12]}  Ra3 {[%clk 0:00:03]} 73. Kg4 {[%clk 0:00:12]} 1-0


[Site "https://www.chess.com"]

[Event "Titled Tuesday Blitz November 07 Early 2023"]
[White "Kononenko, Dmitry"]
[Black "BardArtem"]
[WhiteFideId "14113538"]
[WhiteElo "2599"]
[BlackElo "2803"]
[Result "1-0"]
[Round "6"]
[TimeControl "180+1"]
[Date "2023.11.07"]
[WhiteClock "0:01:21"]
[BlackClock "0:00:02"]
[Board "61"]

1. d4 {[%clk 0:02:59]}  d5 {[%clk 0:02:59]} 2. c4 {[%clk 0:02:59]}  e6 {[%clk 0:03:00]} 3. Nf3 {[%clk 0:02:59]}  Nf6 {[%clk 0:03:00]} 4. g3 {[%clk 0:02:59]}  dxc4 {[%clk 0:03:01]} 5. Qa4+ {[%clk 0:02:57]}  Nbd7 {[%clk 0:02:58]} 6. Bg2 {[%clk 0:02:55]}  a6 {[%clk 0:02:58]} 7. Qxc4 {[%clk 0:02:55]}  b5 {[%clk 0:02:57]} 8. Qc2 {[%clk 0:02:55]}  Bb7 {[%clk 0:02:57]} 9. a4 {[%clk 0:02:54]}  c5 {[%clk 0:02:56]} 10. axb5 {[%clk 0:02:53]}  axb5 {[%clk 0:02:55]} 11. Rxa8 {[%clk 0:02:54]}  Qxa8 {[%clk 0:02:56]} 12. O-O {[%clk 0:02:53]}  Be4 {[%clk 0:02:50]} 13. Qb3 {[%clk 0:02:45]}  Bxb1 {[%clk 0:02:38]} 14. Qxb5 {[%clk 0:02:42]}  Be4 {[%clk 0:02:36]} 15. Bg5 {[%clk 0:02:39]}  Be7 {[%clk 0:02:30]} 16. Bxf6 {[%clk 0:02:34]}  Bxf6 {[%clk 0:02:26]} 17. dxc5 {[%clk 0:02:25]}  Bc6 {[%clk 0:02:24]} 18. Qc4 {[%clk 0:02:25]}  O-O {[%clk 0:02:23]} 19. b4 {[%clk 0:02:25]}  Rb8 {[%clk 0:02:13]} 20. Rb1 {[%clk 0:02:23]}  Ne5 {[%clk 0:01:47]} 21. Nxe5 {[%clk 0:02:20]}  Bxg2 {[%clk 0:01:45]} 22. Nd7 {[%clk 0:02:17]}  Rd8 {[%clk 0:01:38]} 23. Nxf6+ {[%clk 0:02:05]}  gxf6 {[%clk 0:01:39]} 24. Qg4+ {[%clk 0:01:58]}  Kh8 {[%clk 0:01:23]} 25. f3 {[%clk 0:01:59]}  Qa2 {[%clk 0:01:18]} 26. Re1 {[%clk 0:01:53]}  Qd2 {[%clk 0:01:07]} 27. Kf2 {[%clk 0:01:52]}  Rd5 {[%clk 0:00:25]} 28. Qf4 {[%clk 0:01:39]}  Qxf4 {[%clk 0:00:12]} 29. gxf4 {[%clk 0:01:40]}  Bh3 {[%clk 0:00:12]} 30. Kg3 {[%clk 0:01:35]}  Rh5 {[%clk 0:00:12]} 31. e4 {[%clk 0:01:28]}  Kg7 {[%clk 0:00:06]} 32. c6 {[%clk 0:01:23]}  Kf8 {[%clk 0:00:04]} 33. c7 {[%clk 0:01:21]}  e5 {[%clk 0:00:02]} 34. f5 {[%clk 0:01:21]} 1-0


[Site "https://www.chess.com"]

[Event "Titled Tuesday Blitz November 07 Early 2023"]
[White "Feuerstack, Aljoscha"]
[Black "Dragun, Kamil"]
[WhiteFideId "4681932"]
[BlackFideId "1134167"]
[WhiteElo "2597"]
[BlackElo "2799"]
[Result "0-1"]
[Round "6"]
[TimeControl "180+1"]
[Date "2023.11.07"]
[WhiteClock "0:00:09"]
[BlackClock "0:01:50"]
[Board "62"]

1. e4 {[%clk 0:03:00]}  e5 {[%clk 0:02:59]} 2. Bc4 {[%clk 0:02:59]}  Nc6 {[%clk 0:02:58]} 3. Nc3 {[%clk 0:02:59]}  Nf6 {[%clk 0:02:54]} 4. d3 {[%clk 0:02:58]}  Bc5 {[%clk 0:02:54]} 5. f4 {[%clk 0:02:58]}  d6 {[%clk 0:02:53]} 6. f5 {[%clk 0:02:58]}  Nd4 {[%clk 0:02:52]} 7. Na4 {[%clk 0:02:52]}  b5 {[%clk 0:02:48]} 8. Nxc5 {[%clk 0:02:49]}  bxc4 {[%clk 0:02:48]} 9. Na4 {[%clk 0:02:43]}  cxd3 {[%clk 0:02:46]} 10. cxd3 {[%clk 0:02:32]}  Nxe4 {[%clk 0:02:42]} 11. dxe4 {[%clk 0:02:23]}  Qh4+ {[%clk 0:02:42]} 12. Kd2 {[%clk 0:02:19]}  Qf2+ {[%clk 0:02:23]} 13. Ne2 {[%clk 0:02:18]}  Nxe2 {[%clk 0:02:15]} 14. Qxe2 {[%clk 0:01:21]}  Qd4+ {[%clk 0:02:15]} 15. Qd3 {[%clk 0:01:15]}  Qxa4 {[%clk 0:02:15]} 16. b3 {[%clk 0:01:12]}  Qb4+ {[%clk 0:02:08]} 17. Kd1 {[%clk 0:00:52]}  Bb7 {[%clk 0:02:06]} 18. Re1 {[%clk 0:00:52]}  O-O-O {[%clk 0:01:58]} 19. Bd2 {[%clk 0:00:44]}  Qb6 {[%clk 0:01:59]} 20. Rc1 {[%clk 0:00:32]}  d5 {[%clk 0:01:56]} 21. Qg3 {[%clk 0:00:26]}  dxe4 {[%clk 0:01:54]} 22. Qxe5 {[%clk 0:00:09]}  Rhe8 {[%clk 0:01:50]} 0-1


[Site "https://www.chess.com"]

[Event "Titled Tuesday Blitz November 07 Early 2023"]
[White "Weetik, Vjacheslav"]
[Black "Soham Kamotra"]
[WhiteFideId "4153472"]
[BlackFideId "46647490"]
[WhiteElo "2774"]
[BlackElo "2574"]
[Result "1-0"]
[Round "6"]
[TimeControl "180+1"]
[Date "2023.11.07"]
[WhiteClock "0:01:38"]
[BlackClock "0:00:03"]
[Board "65"]

1. e4 {[%clk 0:02:59]}  c5 {[%clk 0:02:08]} 2. d4 {[%clk 0:02:59]}  cxd4 {[%clk 0:02:06]} 3. c3 {[%clk 0:02:59]}  d3 {[%clk 0:02:03]} 4. c4 {[%clk 0:02:58]}  Nc6 {[%clk 0:02:04]} 5. Bxd3 {[%clk 0:02:58]}  g6 {[%clk 0:02:04]} 6. Nc3 {[%clk 0:02:57]}  Bg7 {[%clk 0:02:05]} 7. Nge2 {[%clk 0:02:58]}  Nf6 {[%clk 0:02:02]} 8. O-O {[%clk 0:02:58]}  O-O {[%clk 0:02:03]} 9. b3 {[%clk 0:02:58]}  d6 {[%clk 0:01:54]} 10. Bb2 {[%clk 0:02:57]}  b6 {[%clk 0:01:43]} 11. Qd2 {[%clk 0:02:57]}  Bb7 {[%clk 0:01:43]} 12. Rad1 {[%clk 0:02:56]}  e6 {[%clk 0:01:42]} 13. Bb1 {[%clk 0:02:56]}  Ne7 {[%clk 0:01:01]} 14. Ng3 {[%clk 0:02:35]}  h5 {[%clk 0:00:45]} 15. Qf4 {[%clk 0:02:16]}  Ng4 {[%clk 0:00:21]} 16. h3 {[%clk 0:01:49]}  Be5 {[%clk 0:00:19]} 17. Qd2 {[%clk 0:01:50]}  h4 {[%clk 0:00:18]} 18. Nge2 {[%clk 0:01:45]}  Nf6 {[%clk 0:00:17]} 19. f4 {[%clk 0:01:41]}  Bxc3 {[%clk 0:00:17]} 20. Qxc3 {[%clk 0:01:39]}  e5 {[%clk 0:00:03]} 21. fxe5 {[%clk 0:01:38]} 1-0


[Site "https://www.chess.com"]

[Event "Titled Tuesday Blitz November 07 Early 2023"]
[White "Roebers, Eline"]
[Black "Pakleza, Zbigniew"]
[WhiteFideId "1058401"]
[BlackFideId "1119290"]
[WhiteElo "2561"]
[BlackElo "2762"]
[Result "1-0"]
[Round "6"]
[TimeControl "180+1"]
[Date "2023.11.07"]
[WhiteClock "0:00:03"]
[BlackClock "0:00:01"]
[Board "69"]

1. e4 {[%clk 0:03:00]}  d6 {[%clk 0:02:59]} 2. d4 {[%clk 0:03:00]}  Nf6 {[%clk 0:03:00]} 3. Nc3 {[%clk 0:03:01]}  c6 {[%clk 0:03:01]} 4. f4 {[%clk 0:03:01]}  Qb6 {[%clk 0:03:01]} 5. Nf3 {[%clk 0:02:56]}  Bg4 {[%clk 0:03:01]} 6. Be2 {[%clk 0:02:55]}  Bxf3 {[%clk 0:03:01]} 7. Bxf3 {[%clk 0:02:55]}  e5 {[%clk 0:03:02]} 8. Ne2 {[%clk 0:02:48]}  Nbd7 {[%clk 0:03:01]} 9. g3 {[%clk 0:02:27]}  Be7 {[%clk 0:02:59]} 10. c3 {[%clk 0:02:25]}  O-O {[%clk 0:02:59]} 11. O-O {[%clk 0:02:25]}  Rfe8 {[%clk 0:02:59]} 12. Kh1 {[%clk 0:02:21]}  Bf8 {[%clk 0:02:58]} 13. Qd3 {[%clk 0:02:19]}  a5 {[%clk 0:02:25]} 14. g4 {[%clk 0:01:51]}  h6 {[%clk 0:02:14]} 15. g5 {[%clk 0:01:46]}  hxg5 {[%clk 0:02:13]} 16. fxg5 {[%clk 0:01:47]}  Nh7 {[%clk 0:02:12]} 17. Bg4 {[%clk 0:01:45]}  Re7 {[%clk 0:01:59]} 18. Qh3 {[%clk 0:01:38]}  Qc7 {[%clk 0:01:38]} 19. Ng3 {[%clk 0:01:11]}  g6 {[%clk 0:01:35]} 20. Nf5 {[%clk 0:01:04]}  Rae8 {[%clk 0:01:24]} 21. Nxe7+ {[%clk 0:01:04]}  Rxe7 {[%clk 0:01:25]} 22. Bd2 {[%clk 0:00:57]}  exd4 {[%clk 0:01:15]} 23. cxd4 {[%clk 0:00:58]}  Bg7 {[%clk 0:01:16]} 24. Bc3 {[%clk 0:00:56]}  Nxg5 {[%clk 0:01:15]} 25. Qh4 {[%clk 0:00:52]}  f6 {[%clk 0:01:07]} 26. Bf3 {[%clk 0:00:43]}  Nxf3 {[%clk 0:00:57]} 27. Rxf3 {[%clk 0:00:44]}  d5 {[%clk 0:00:43]} 28. e5 {[%clk 0:00:43]}  Re6 {[%clk 0:00:29]} 29. Qh3 {[%clk 0:00:34]}  f5 {[%clk 0:00:22]} 30. Bd2 {[%clk 0:00:24]}  c5 {[%clk 0:00:20]} 31. Bh6 {[%clk 0:00:20]}  cxd4 {[%clk 0:00:19]} 32. Bxg7 {[%clk 0:00:19]}  Kxg7 {[%clk 0:00:20]} 33. Rg1 {[%clk 0:00:17]}  Nxe5 {[%clk 0:00:12]} 34. Rxf5 {[%clk 0:00:15]}  Qc6 {[%clk 0:00:08]} 35. Rh5 {[%clk 0:00:12]}  d3 {[%clk 0:00:07]} 36. Rh7+ {[%clk 0:00:12]}  Kf8 {[%clk 0:00:08]} 37. Qh6+ {[%clk 0:00:10]}  Ke8 {[%clk 0:00:07]} 38. Qg7 {[%clk 0:00:10]}  d4+ {[%clk 0:00:07]} 39. Rg2 {[%clk 0:00:10]}  Kd8 {[%clk 0:00:03]} 40. Qxb7 {[%clk 0:00:05]}  Qxb7 {[%clk 0:00:02]} 41. Rxb7 {[%clk 0:00:06]}  Nf3 {[%clk 0:00:01]} 42. Rf2 {[%clk 0:00:06]}  Re1+ {[%clk 0:00:01]} 43. Kg2 {[%clk 0:00:06]}  d2 {[%clk 0:00:02]} 44. Rxf3 {[%clk 0:00:07]}  d1=Q {[%clk 0:00:02]} 45. Rf8+ {[%clk 0:00:07]}  Re8 {[%clk 0:00:02]} 46. Rb8+ {[%clk 0:00:07]}  Kd7 {[%clk 0:00:03]} 47. Rbxe8 {[%clk 0:00:07]}  Qd2+ {[%clk 0:00:04]} 48. Kg3 {[%clk 0:00:07]}  Qg5+ {[%clk 0:00:04]} 49. Kf3 {[%clk 0:00:06]}  d3 {[%clk 0:00:05]} 50. Rd8+ {[%clk 0:00:05]}  Kc7 {[%clk 0:00:05]} 51. Rxd3 {[%clk 0:00:05]}  Qh5+ {[%clk 0:00:05]} 52. Kg2 {[%clk 0:00:03]}  Qg4+ {[%clk 0:00:04]} 53. Rg3 {[%clk 0:00:03]}  Qe2+ {[%clk 0:00:05]} 54. Rf2 {[%clk 0:00:03]}  Qe4+ {[%clk 0:00:05]} 55. Rgf3 {[%clk 0:00:04]}  g5 {[%clk 0:00:05]} 56. Kg3 {[%clk 0:00:03]}  Qh4+ {[%clk 0:00:05]} 57. Kg2 {[%clk 0:00:04]}  Qe4 {[%clk 0:00:05]} 58. h3 {[%clk 0:00:04]}  a4 {[%clk 0:00:05]} 59. Kg3 {[%clk 0:00:04]}  Kb6 {[%clk 0:00:04]} 60. Rc3 {[%clk 0:00:03]}  Qe5+ {[%clk 0:00:02]} 61. Kg2 {[%clk 0:00:04]}  Qe4+ {[%clk 0:00:03]} 62. Rff3 {[%clk 0:00:04]}  Qe2+ {[%clk 0:00:03]} 63. Rf2 {[%clk 0:00:04]}  Qe4+ {[%clk 0:00:03]} 64. Kh2 {[%clk 0:00:05]}  Qe5+ {[%clk 0:00:03]} 65. Rg3 {[%clk 0:00:05]}  Qd5 {[%clk 0:00:01]} 66. Rf6+ {[%clk 0:00:05]}  Ka7 {[%clk 0:00:02]} 67. Rf2 {[%clk 0:00:05]}  Qxa2 {[%clk 0:00:01]} 68. Rxg5 {[%clk 0:00:04]}  Kb6 {[%clk 0:00:01]} 69. Rf6+ {[%clk 0:00:03]}  Kc7 {[%clk 0:00:02]} 70. Rg7+ {[%clk 0:00:03]}  Qf7 {[%clk 0:00:01]} 71. Rfxf7+ {[%clk 0:00:03]} 1-0


[Site "https://www.chess.com"]